bitfinex/quotes_SOLUSD_20250814
["timestamp","ask_amount","ask_price","bid_price","bid_amount"]
[1755182950389,26.06,197.24,197.19,40.7]
[1755182950704,26.06,197.24,197.2,40.68]
[1755182950891,26.06,197.24,197.2,58.43821587]
[1755182951092,0.06,197.24,197.2,59.11821587]
[1755182951293,0.06,197.24,197.2,41.36]
[1755182951493,18.47821587,197.23,197.17,0.68]
[1755182951694,23.54860537,197.23,197.18,40.66]
[1755182951911,22.82860537,197.23,197.18,40.66]
[1755182952219,22.82860537,197.23,197.18,41.34]
[1755182952405,0.06,197.24,197.21,17.75821587]
[1755182952609,26.0,197.23,197.22,41.34]
[1755182952917,29.39101088,197.23,197.22,40.66]
[1755182953106,0.06,197.24,197.22,40.66]
[1755182953414,0.06,197.24,197.23,18.43821587]
[1755182953619,0.06,197.24,197.23,23.50843845]
[1755182954114,0.06,197.24,197.23,18.43821587]
[1755182954509,0.06,197.24,197.23,23.50843845]
[1755182954820,0.06,197.24,197.23,38.61465402]
[1755182956010,0.06,197.26,197.23,38.61465402]
[1755182956317,0.06,197.26,197.25,32.86443144]
[1755182956619,0.06,197.26,197.25,74.18443144]
[1755182957818,0.06,197.26,197.25,79.25413993]
[1755182959201,0.06,197.26,197.25,61.49592406]
[1755182959399,0.06,197.26,197.25,59.07821587]
[1755182959597,0.06,197.26,197.25,64.14792436]
[1755182959918,0.06,197.26,197.25,58.35821587]
[1755182960121,0.06,197.26,197.25,40.6]
[1755182960519,0.06,197.26,197.22,0.68]
[1755182960830,0.06,197.26,197.24,17.75821587]
[1755182961018,0.06,197.26,197.25,18.43821587]
[1755182961323,0.06,197.27,197.26,15.10621557]
[1755182961512,0.06,197.27,197.26,74.12443144]
[1755182961700,0.06,197.3,197.26,91.88264731]
[1755182961901,0.72,197.42,197.3,15.10621557]
[1755182962123,0.72,197.42,197.38,17.75821587]
[1755182962321,5.06504474,197.44,197.39,40.58]
[1755182962528,0.72,197.48,197.43,17.75821587]
[1755182962707,0.72,197.48,197.44,40.58]
[1755182962904,17.75821587,197.52,197.45,17.75821587]
[1755182963101,26.0,197.48,197.45,17.75821587]
[1755182963515,0.72,197.47,197.44,40.58]
[1755182963724,26.0,197.47,197.44,58.33821587]
[1755182963930,26.0,197.47,197.44,40.58]
[1755182964110,26.0,197.47,197.44,58.33821587]
[1755182964422,5.06303478,197.51,197.44,58.33821587]
[1755182964423,5.06303478,197.51,197.46,17.75821587]
[1755182964630,5.06281102,197.52,197.47,40.56]
[1755182964817,5.06149719,197.57,197.51,17.75821587]
[1755182965017,12.655674,197.62,197.55,17.75821587]
[1755182965206,0.72,197.58,197.56,40.56]
[1755182965410,0.72,197.57,197.55,17.75821587]
[1755182965627,0.06,197.59,197.56,58.31821587]
[1755182965831,0.06,197.59,197.57,58.29821587]
[1755182966133,0.78,197.59,197.57,40.54]
[1755182966440,0.06,197.59,197.57,40.54]
[1755182966601,0.06,197.59,197.57,58.29821587]
[1755182966801,0.06,197.59,197.58,17.75821587]
[1755182967538,0.06,197.59,197.58,40.52]
[1755182967744,18.53821587,197.59,197.55,40.52]
[1755182968033,26.0,197.57,197.55,40.52]
[1755182968237,26.72,197.56,197.55,40.52]
[1755182968414,26.72,197.56,197.48,0.68]
[1755182968614,26.0,197.53,197.5,17.75821587]
[1755182968845,26.0,197.53,197.51,17.75821587]
[1755182969016,26.0,197.53,197.52,40.5]
[1755182969216,26.0,197.54,197.52,40.5]
[1755182969429,31.06227317,197.54,197.52,58.25821587]
[1755182969737,31.78227317,197.54,197.52,40.5]
[1755182970039,31.06227317,197.54,197.53,40.5]
[1755182970513,31.73227317,197.54,197.52,40.48]
[1755182971439,31.73227317,197.54,197.48,0.68]
[1755182971622,49.49048904,197.54,197.48,17.75821587]
[1755182971819,31.73227317,197.54,197.49,58.23821587]
[1755182972022,31.06227317,197.54,197.5,17.75821587]
[1755182972328,31.73227317,197.54,197.5,17.75821587]
[1755182972533,31.06227317,197.54,197.49,58.23821587]
[1755182972844,5.06277845,197.52,197.49,58.23821587]
[1755182973341,5.06277845,197.52,197.49,40.48]
[1755182973514,5.73277845,197.52,197.49,40.48]
[1755182973838,5.06277845,197.52,197.49,40.48]
[1755182974027,18.42821587,197.51,197.42,15.867182]
[1755182974225,0.67,197.51,197.45,17.75821587]
[1755182974554,0.67,197.51,197.44,17.75821587]
[1755182974831,26.0,197.5,197.49,17.75821587]
[1755182975039,26.0,197.51,197.49,58.87821587]
[1755182975249,26.0,197.51,197.49,41.12]
[1755182975415,26.0,197.51,197.5,17.75821587]
[1755182975745,5.12186724,197.56,197.5,18.43821587]
[1755182975946,43.75821587,197.55,197.49,40.44]
[1755182976149,5.12186724,197.56,197.49,40.44]
[1755182976150,26.0,197.53,197.49,40.44]
[1755182976445,0.67,197.52,197.49,40.44]
[1755182976647,26.0,197.53,197.49,58.19821587]
[1755182976848,5.06277845,197.52,197.49,40.44]
[1755182977640,26.0,197.53,197.49,58.19821587]
[1755182977938,26.0,197.53,197.49,58.87821587]
[1755182978138,26.0,197.53,197.5,17.75821587]
[1755182978343,0.06,197.55,197.52,17.75821587]
[1755182978663,0.06,197.55,197.54,17.75821587]
[1755182978962,0.06,197.55,197.54,18.43821587]
[1755182980649,0.06,197.55,197.54,38.60669731]
[1755182980954,0.06,197.55,197.54,40.63032231]
[1755182981523,0.06,197.55,197.54,17.75821587]
[1755182981840,0.06,197.55,197.54,63.22048174]
[1755182982165,0.06,197.55,197.54,63.90048174]
[1755182982655,0.06,197.55,197.54,53.24007845]
[1755182982855,0.06,197.55,197.54,52.56007845]
[1755182983662,0.06,197.55,197.54,40.38]
[1755182983829,0.73,197.55,197.54,40.38]
[1755182984030,0.06,197.55,197.54,52.54007845]
[1755182984323,0.06,197.55,197.54,40.38]
[1755182984764,0.06,197.55,197.54,52.54007845]
[1755182984931,0.06,197.55,197.54,40.38]
[1755182985655,0.06,197.55,197.54,52.54007845]
[1755182985840,0.06,197.55,197.54,40.38]
[1755182987327,0.06,197.55,197.54,52.54007845]
[1755182987529,0.06,197.55,197.54,53.22007845]
[1755182987929,0.06,197.55,197.54,52.54007845]
[1755182988851,0.06,197.55,197.54,53.22007845]
[1755182989072,0.06,197.55,197.54,52.54007845]
[1755182992761,0.06,197.55,197.54,58.28234432]
[1755182992964,0.06,197.55,197.54,53.22007845]
[1755182993150,0.06,197.55,197.54,52.54007845]
[1755182993672,0.73,197.55,197.5,12.16007845]
[1755182993849,12.83007845,197.54,197.48,12.16007845]
[1755182994052,12.83007845,197.54,197.49,40.3]
[1755182994245,12.16007845,197.54,197.49,40.3]
[1755182994576,5.06277845,197.52,197.49,40.3]
[1755182994733,12.16007845,197.54,197.49,40.3]
[1755182994734,0.06,197.55,197.49,40.3]
[1755182994938,17.89234432,197.54,197.49,40.3]
[1755182995155,17.71793054,197.54,197.49,40.3]
[1755182995356,0.67,197.53,197.49,52.46007845]
[1755182995740,0.67,197.52,197.49,40.3]
[1755182995965,29.87800899,197.54,197.49,40.3]
[1755182995966,0.67,197.51,197.49,40.3]
[1755182996455,5.73329113,197.5,197.49,40.3]
[1755182996658,0.67,197.5,197.49,40.3]
[1755182996851,5.06308401,197.51,197.49,40.3]
[1755182997266,26.0,197.51,197.49,40.3]
[1755182997947,0.67,197.5,197.49,40.3]
[1755182998344,26.67,197.5,197.49,40.3]
[1755182998674,31.73329113,197.5,197.49,40.3]
[1755182998857,26.67,197.5,197.49,40.3]
[1755182999259,26.0,197.5,197.49,40.3]
[1755182999846,31.73254819,197.53,197.49,40.3]
[1755183000047,3.36825123,197.52,197.49,40.3]
[1755183000268,31.73252846,197.53,197.49,40.3]
[1755183000466,5.78319826,197.51,197.49,40.3]
[1755183000765,15.10621557,197.46,197.35,12.88007845]
[1755183000948,5.06319826,197.51,197.38,12.16007845]
[1755183000949,26.0,197.41,197.38,12.16007845]
[1755183001148,26.0,197.47,197.4,12.16007845]
[1755183001349,38.16007845,197.45,197.39,53.14007845]
[1755183001658,3.37456308,197.44,197.39,52.42007845]
[1755183001874,38.16007845,197.45,197.39,52.42007845]
[1755183002056,12.16007845,197.44,197.39,40.26]
[1755183002382,26.0,197.37,197.32,0.72]
[1755183002565,12.88007845,197.36,197.3,0.03]
[1755183002877,12.16007845,197.34,197.31,40.26]
[1755183003176,26.0,197.35,197.32,0.72]
[1755183003345,26.0,197.36,197.33,12.88007845]
[1755183003546,26.0,197.36,197.3,0.03]
[1755183003746,26.0,197.33,197.3,0.03]
[1755183003942,12.16007845,197.37,197.31,53.12007845]
[1755183004148,26.0,197.34,197.31,40.24]
[1755183004591,31.06753809,197.34,197.31,40.24]
[1755183005152,31.78753809,197.34,197.31,40.24]
[1755183005354,12.88007845,197.33,197.31,40.24]
[1755183005586,12.88007845,197.32,197.3,0.03]
[1755183005769,26.72,197.31,197.3,0.03]
[1755183005970,38.88007845,197.31,197.3,0.03]
[1755183006169,12.88007845,197.31,197.3,0.03]
[1755183006657,5.78816684,197.31,197.3,0.03]
[1755183007069,5.06816684,197.31,197.3,0.03]
[1755183007274,26.0,197.32,197.3,0.03]
[1755183007471,12.88007845,197.31,197.3,0.03]
[1755183007652,12.88007845,197.31,197.28,0.03]
[1755183007653,15.10621557,197.3,197.28,0.03]
[1755183007857,16.26086213,197.29,197.28,0.03]
[1755183008063,15.10621557,197.27,197.26,0.03]
[1755183008263,41.10621557,197.25,197.24,0.03]
[1755183008557,62.43678619,197.25,197.24,0.03]
[1755183008864,59.05600251,197.25,197.24,0.03]
[1755183009062,62.43087278,197.25,197.24,0.03]
[1755183009476,62.4253966,197.25,197.24,0.03]
[1755183010084,43.94978694,197.25,197.24,0.03]
[1755183010464,31.06970849,197.25,197.24,0.03]
[1755183010771,38.16007845,197.26,197.24,0.03]
[1755183011362,5.78898549,197.28,197.24,0.03]
[1755183011572,12.16007845,197.29,197.24,0.03]
[1755183011777,0.72,197.28,197.24,0.03]
[1755183011978,38.16007845,197.26,197.24,0.03]
[1755183012187,12.88007845,197.25,197.24,0.03]
[1755183012393,27.98629402,197.25,197.24,0.03]
[1755183012687,33.05600251,197.25,197.24,0.03]
[1755183012857,33.05600251,197.25,197.24,1e-08]
[1755183013279,17.94978694,197.25,197.24,1e-08]
[1755183013471,15.212596,197.27,197.24,1e-08]
[1755183013472,38.16007845,197.26,197.24,1e-08]
[1755183013674,26.0,197.26,197.24,1e-08]
[1755183013871,12.16007845,197.3,197.24,0.72000001]
[1755183014386,22.33761878,197.34,197.28,12.16007845]
[1755183014761,26.0,197.3,197.28,12.16007845]
[1755183014961,26.0,197.3,197.24,12.16007846]
[1755183014962,12.16007845,197.3,197.24,12.16007846]
[1755183015173,26.0,197.31,197.25,40.22]
[1755183015366,26.0,197.26,197.25,40.22]
[1755183015665,38.88007845,197.26,197.24,1e-08]
[1755183015875,12.88007845,197.25,197.24,1e-08]
[1755183016480,0.72,197.25,197.24,1e-08]
[1755183016679,17.94978694,197.25,197.24,1e-08]
[1755183017071,33.05600251,197.25,197.24,1e-08]
[1755183017576,15.10621557,197.21,197.18,0.03]
[1755183017776,12.16007845,197.19,197.18,0.03]
[1755183017984,26.0,197.16,197.11,40.22]
[1755183018187,12.16007845,197.12,197.1,0.2]
[1755183018387,26.0,197.07,196.99,0.03]
[1755183018596,12.16007845,197.03,196.99,0.75]
[1755183018778,26.0,197.02,197.0,0.72]
[1755183019168,26.0,197.02,196.99,0.03]
[1755183019374,5.07522522,197.04,196.99,0.03]
[1755183019698,17.799056,197.01,196.99,0.03]
[1755183019995,5.04977386,197.01,197.0,0.72]
[1755183020188,26.0,197.01,197.0,0.72]
[1755183020372,26.0,197.0,196.99,0.03]
[1755183020890,26.0,197.05,196.99,0.03]
[1755183021087,26.0,197.0,196.99,0.03]
[1755183021287,17.799056,197.04,196.99,0.03]
[1755183021488,26.0,197.04,197.02,17.799056]
[1755183021800,26.0,197.07,197.03,18.519056]
[1755183021996,26.0,197.07,197.02,17.799056]
[1755183022170,26.0,197.07,197.02,0.72]
[1755183022373,22.75636913,197.08,196.99,0.75]
[1755183022374,26.0,197.02,196.99,0.75]
[1755183022679,26.0,197.01,196.99,0.75]
[1755183022879,5.07382414,197.09,197.0,18.519056]
[1755183023070,5.0727946,197.13,197.04,17.799056]
[1755183023272,17.799056,197.14,197.08,17.799056]
[1755183023473,22.87170643,197.14,197.08,17.799056]
[1755183023780,22.74144911,197.17,197.11,17.799056]
[1755183023988,22.87056533,197.18,197.12,17.799056]
[1755183024175,17.799056,197.16,197.1,17.799056]
[1755183024374,17.799056,197.14,197.08,18.519056]
[1755183024600,26.0,197.14,197.05,57.999056]
[1755183024881,17.799056,197.13,197.07,17.799056]
[1755183025077,17.799056,197.16,197.1,17.799056]
[1755183025278,17.799056,197.16,197.08,0.72]
[1755183025594,17.799056,197.17,197.11,17.799056]
[1755183025895,5.07150826,197.18,197.11,0.72]
[1755183026102,17.799056,197.21,197.15,17.799056]
[1755183026270,22.86902152,197.24,197.18,17.799056]
[1755183026472,5.06968376,197.26,197.19,0.72]
[1755183026772,17.799056,197.25,197.19,22.87027717]
[1755183026972,5.00997414,197.26,197.21,17.799056]
[1755183027184,0.06,197.29,197.22,0.72]
[1755183027388,0.06,197.29,197.26,17.799056]
[1755183027691,0.06,197.29,197.28,17.799056]
[1755183027890,0.06,197.29,197.28,58.699056]
[1755183028407,0.72,197.41,197.29,15.10621557]
[1755183028408,5.06129286,197.39,197.29,15.10621557]
[1755183028700,17.799056,197.36,197.29,0.72]
[1755183028873,26.0,197.29,197.26,40.18]
[1755183029077,26.0,197.29,197.25,40.9]
[1755183029403,26.0,197.29,197.19,12.67812769]
[1755183029404,26.0,197.28,197.24,40.18]
[1755183029600,26.0,197.28,197.2,0.72]
[1755183029601,43.799056,197.28,197.2,0.72]
[1755183029781,17.799056,197.26,197.21,40.18]
[1755183030102,17.799056,197.25,197.18,0.72]
[1755183030313,26.0,197.26,197.18,0.72]
[1755183030479,17.799056,197.25,197.19,17.799056]
[1755183030676,17.799056,197.26,197.19,17.799056]
[1755183030885,26.0,197.28,197.18,0.72]
[1755183030886,48.86876449,197.25,197.18,0.72]
[1755183031095,43.799056,197.24,197.18,18.519056]
[1755183031300,26.0,197.21,197.17,57.979056]
[1755183031470,26.0,197.2,197.17,57.979056]
[1755183031784,26.0,197.2,197.18,0.71]
[1755183032118,5.06970849,197.25,197.18,0.71]
[1755183032285,31.06970849,197.25,197.21,17.799056]
[1755183032482,31.06970849,197.25,197.19,17.799056]
[1755183032898,26.0,197.22,197.18,18.509056]
[1755183033084,26.0,197.24,197.18,40.16]
[1755183033396,43.799056,197.24,197.18,40.16]
[1755183033570,43.799056,197.24,197.18,57.959056]
[1755183033571,26.0,197.21,197.18,57.959056]
[1755183033774,0.72,197.21,197.18,40.16]
[1755183033976,18.519056,197.2,197.18,40.16]
[1755183034496,17.799056,197.2,197.18,40.16]
[1755183034981,5.07125107,197.19,197.18,40.16]
[1755183035181,31.07125107,197.19,197.18,40.16]
[1755183035519,26.0,197.19,197.18,40.16]
[1755183035803,17.799056,197.23,197.18,40.16]
[1755183036004,26.0,197.21,197.18,40.16]
[1755183036203,0.72,197.22,197.19,17.799056]
[1755183036204,26.0,197.22,197.19,17.799056]
[1755183036506,5.06970849,197.25,197.19,17.799056]
[1755183036507,17.799056,197.25,197.2,0.71]
[1755183036676,17.799056,197.25,197.18,45.23147988]
[1755183036677,17.799056,197.27,197.18,40.87]
[1755183036875,26.0,197.24,197.18,58.669056]
[1755183037179,5.7889303,197.29,197.21,17.799056]
[1755183037378,17.799056,197.29,197.23,17.799056]
[1755183037602,0.06,197.31,197.24,40.12]
[1755183037776,5.12829801,197.31,197.24,40.12]
[1755183037984,26.0,197.26,197.24,40.12]
[1755183038194,17.859056,197.31,197.25,17.799056]
[1755183038398,0.06,197.31,197.27,17.799056]
[1755183038590,0.06,197.31,197.3,17.799056]
[1755183038803,0.06,197.31,197.3,57.919056]
[1755183039105,0.06,197.31,197.3,40.12]
[1755183039310,18.579056,197.31,197.24,0.71]
[1755183039628,17.799056,197.29,197.25,40.12]
[1755183039901,18.519056,197.29,197.25,40.12]
[1755183040104,26.0,197.3,197.25,40.12]
[1755183040305,26.0,197.3,197.26,17.799056]
[1755183040605,0.06,197.31,197.27,17.799056]
[1755183040781,26.0,197.29,197.26,0.71]
[1755183040982,26.0,197.29,197.21,5.07073677]
[1755183041182,43.799056,197.27,197.22,40.1]
[1755183041608,26.0,197.24,197.22,40.1]
[1755183042204,0.72,197.24,197.22,40.1]
[1755183042404,26.0,197.26,197.22,57.899056]
[1755183042908,26.0,197.26,197.22,40.1]
[1755183042909,26.0,197.23,197.22,40.1]
[1755183043492,23.58927858,197.23,197.19,0.03]
[1755183043810,26.0,197.2,197.19,0.03]
[1755183046090,5.07095733,197.21,197.19,0.03]
[1755183046299,5.79095733,197.21,197.19,0.03]
[1755183046498,0.72,197.21,197.19,0.03]
[1755183046702,26.0,197.2,197.19,0.03]
[1755183047211,0.72,197.25,197.19,0.03]
[1755183047509,26.0,197.21,197.19,0.03]
[1755183047699,26.0,197.2,197.19,0.03]
[1755183048488,44.519056,197.2,197.19,0.03]
[1755183049317,47.89880174,197.2,197.19,0.03]
[1755183049639,56.72612368,197.2,197.15,0.03]
[1755183049798,17.799056,197.16,197.15,0.03]
[1755183050003,18.519056,197.16,197.15,0.03]
[1755183050206,25.93059099,197.16,197.15,0.03]
[1755183050401,29.68895222,197.16,197.15,0.03]
[1755183051333,25.93059099,197.16,197.15,0.03]
[1755183051509,29.68915122,197.16,197.15,0.03]
[1755183051840,34.76117394,197.16,197.15,0.03]
[1755183052041,16.96211794,197.16,197.15,0.03]
[1755183052231,27.62178006,197.16,197.15,0.03]
[1755183052527,31.00459953,197.16,197.15,0.03]
[1755183052939,26.25389819,197.16,197.15,0.03]
[1755183053141,17.799056,197.18,197.15,0.03]
[1755183053318,5.07150826,197.18,197.15,0.03]
[1755183053528,17.799056,197.17,197.15,0.03]
[1755183053834,23.59107872,197.16,197.15,0.03]
[1755183056418,23.59107872,197.16,197.15,1e-08]
[1755183056838,26.97264923,197.16,197.15,1e-08]
[1755183057043,23.59107872,197.16,197.15,1e-08]
[1755183057844,31.07253728,197.14,197.13,0.02999691]
[1755183058025,48.87159328,197.14,197.13,0.02999691]
[1755183058226,49.59159328,197.14,197.13,0.02999691]
[1755183058618,77.37915205,197.14,197.08,40.06]
[1755183058932,77.37915205,197.14,197.03,40.75]
[1755183058933,26.0,197.06,197.03,40.75]
[1755183059127,43.799056,197.08,197.04,0.71]
[1755183059419,26.0,197.08,197.03,40.04]
[1755183059625,26.0,197.08,197.04,0.71]
[1755183059817,31.07433712,197.08,197.04,0.71]
[1755183060010,48.87339312,197.08,197.04,0.71]
[1755183060213,26.0,197.05,197.0,0.71]
[1755183060433,43.799056,197.05,197.01,0.71]
[1755183060639,17.799056,197.04,196.99,0.03]
[1755183060815,26.0,197.05,197.0,0.66]
[1755183061017,26.0,197.03,197.01,0.66]
[1755183061826,31.07557207,197.03,196.99,0.03]
[1755183062019,31.07557207,197.03,196.99,0.69]
[1755183062213,26.0,197.02,196.99,0.03]
[1755183062409,26.0,197.01,197.0,0.66]
[1755183062618,5.07914463,197.05,197.0,18.459056]
[1755183062824,17.799056,197.09,197.02,17.799056]
[1755183063039,26.0,197.08,197.05,17.799056]
[1755183063242,26.0,197.08,197.05,0.66]
[1755183063425,26.0,197.06,197.04,40.02]
[1755183063822,22.87391009,197.05,197.04,40.02]
[1755183064014,22.87391009,197.05,196.99,0.03]
[1755183064015,26.0,197.02,196.99,0.03]
[1755183064221,22.87082148,197.17,197.01,17.799056]
[1755183064447,17.75117918,197.17,197.09,17.799056]
[1755183064623,43.799056,197.14,197.08,57.799056]
[1755183064823,26.0,197.13,197.09,18.459056]
[1755183065021,26.0,197.13,197.08,40.0]
[1755183065225,17.799056,197.14,197.09,0.66]
[1755183065422,26.0,197.11,197.09,0.66]
[1755183065628,26.0,197.09,197.08,40.0]
[1755183065851,26.0,197.09,197.08,40.66]
[1755183066344,5.07176548,197.17,197.08,58.459056]
[1755183066525,17.799056,197.16,197.09,17.799056]
[1755183066725,26.0,197.14,197.09,17.799056]
[1755183066931,26.0,197.14,197.1,0.66]
[1755183067145,17.75117918,197.17,197.1,0.66]
[1755183067146,26.0,197.13,197.1,0.66]
[1755183067342,31.09126236,197.13,197.08,40.0]
[1755183067532,31.09126236,197.13,197.1,17.799056]
[1755183067945,36.16423551,197.13,197.09,0.66]
[1755183068351,36.16423551,197.13,197.08,57.799056]
[1755183068539,36.16423551,197.13,197.09,17.799056]
[1755183068848,36.16423551,197.13,197.09,18.459056]
[1755183069047,36.16423551,197.13,197.1,17.799056]
[1755183069348,36.16423551,197.13,197.1,18.459056]
[1755183069557,5.07099391,197.2,197.12,17.799056]
[1755183069752,5.74099391,197.2,197.13,57.779056]
[1755183069924,26.0,197.12,197.02,0.03]
[1755183070128,26.0,197.1,197.06,0.66]
[1755183070837,43.799056,197.09,197.03,39.98]
[1755183071035,43.799056,197.09,197.02,18.489056]
[1755183071036,26.0,197.04,197.02,0.03]
[1755183071351,26.0,197.03,197.02,0.03]
[1755183072030,31.07536923,197.03,197.02,0.03]
[1755183072359,49.54442523,197.03,197.02,0.03]
[1755183072531,31.74536923,197.03,197.02,0.03]
[1755183072857,49.54442523,197.03,197.02,0.03]
[1755183073048,49.54442523,197.03,196.99,40.01]
[1755183073049,62.23284831,197.03,196.99,0.03]
[1755183073250,58.90527157,197.0,196.95,0.03]
[1755183073465,43.799056,196.96,196.95,0.03]
[1755183073639,26.0,196.96,196.95,0.03]
[1755183073842,17.799056,196.96,196.95,0.03]
[1755183074067,22.87622903,196.96,196.95,0.03]
[1755183074270,53.57233056,196.96,196.95,0.03]
[1755183074475,35.10327456,196.96,196.95,0.03]
[1755183074653,5.74717303,196.96,196.95,0.03]
[1755183074855,49.54622903,196.96,196.95,0.03]
[1755183075056,27.58943251,196.96,196.95,0.03]
[1755183077145,42.69564808,196.96,196.95,1e-08]
[1755183077366,82.67564808,196.96,196.95,1e-08]
[1755183077568,82.67564808,196.96,196.94,1e-08]
[1755183077569,15.10621557,196.95,196.94,1e-08]
[1755183077755,33.57527157,196.95,196.94,1e-08]
[1755183078157,26.0,196.92,196.83,0.66]
[1755183078381,17.799056,196.9,196.83,18.459056]
[1755183078545,43.799056,196.89,196.83,18.459056]
[1755183078745,26.0,196.89,196.84,0.66]
[1755183078945,26.0,196.89,196.85,18.459056]
[1755183079147,26.0,196.89,196.85,17.799056]
[1755183079370,26.0,196.91,196.87,17.799056]
[1755183079566,43.799056,196.92,196.87,0.66]
[1755183079769,17.799056,196.9,196.84,17.799056]
[1755183079983,17.799056,196.88,196.83,0.66]
[1755183080149,22.87849897,196.88,196.83,0.66]
[1755183080343,26.0,196.89,196.84,0.66]
[1755183080344,31.0790083,196.89,196.84,0.66]
[1755183080648,26.0,196.91,196.88,17.799056]
[1755183080849,26.0,196.9,196.89,0.66]
[1755183081052,5.14916725,196.92,196.89,18.459056]
[1755183081252,26.0,196.92,196.9,0.66]
[1755183081451,17.799056,196.93,196.87,18.459056]
[1755183081781,17.799056,196.88,196.82,40.62]
[1755183081989,17.799056,196.88,196.74,36.53]
[1755183081990,43.799056,196.84,196.78,0.66]
[1755183082178,22.87958234,196.83,196.78,0.66]
[1755183082484,26.0,196.82,196.78,17.799056]
[1755183082655,26.0,196.82,196.79,0.66]
[1755183082982,26.0,196.82,196.8,18.459056]
[1755183083280,5.0789781,196.89,196.81,18.459056]
[1755183083478,26.0,196.86,196.83,17.799056]
[1755183083675,17.799056,196.86,196.78,0.66]
[1755183083888,17.799056,196.84,196.78,58.419056]
[1755183084047,5.08052634,196.83,196.78,58.419056]
[1755183085089,22.87958234,196.83,196.78,39.96]
[1755183085376,26.0,196.8,196.78,39.96]
[1755183086180,26.0,196.78,196.74,0.03]
[1755183086855,26.0,196.77,196.74,0.03]
[1755183087470,26.0,196.79,196.75,18.459056]
[1755183087851,26.0,196.79,196.76,0.66]
[1755183088049,18.469056,196.86,196.78,17.799056]
[1755183088364,17.799056,196.82,196.76,17.799056]
[1755183088560,26.0,196.79,196.76,17.799056]
[1755183088769,26.0,196.77,196.74,18.489056]
[1755183088959,26.0,196.77,196.74,0.03]
[1755183089349,17.799056,196.76,196.74,0.03]
[1755183089556,17.799056,196.75,196.74,0.03]
[1755183089755,18.469056,196.75,196.74,0.03]
[1755183089949,0.67,196.75,196.74,0.03]
[1755183090156,22.88162463,196.76,196.74,0.03]
[1755183090477,26.0,196.77,196.74,0.03]
[1755183090981,49.59126669,196.77,196.74,0.03]
[1755183091182,0.71,196.76,196.74,0.03]
[1755183091474,18.509056,196.75,196.74,0.03]
[1755183091862,33.61527157,196.75,196.74,0.03]
[1755183092065,15.10621557,196.74,196.72,0.03]
[1755183092263,15.10621557,196.74,196.62,0.68]
[1755183092264,26.0,196.66,196.57,7.12083321]
[1755183092478,26.0,196.64,196.6,17.799056]
[1755183092782,26.0,196.64,196.62,12.2778924]
[1755183093274,26.0,196.64,196.61,0.68]
[1755183093654,26.0,196.64,196.61,12.9578924]
[1755183093859,29.08546633,196.64,196.61,12.9578924]
[1755183094076,29.18669662,196.64,196.56,0.68]
[1755183094390,12.2778924,196.62,196.56,39.94]
[1755183094686,17.87663642,196.62,196.53,40.62]
[1755183095058,17.87663642,196.61,196.53,40.62]
[1755183095454,34.27214987,196.64,196.54,0.68]